Cogmind - Beta 15 @@@ ROGUE MODE // 2025.05.14 @ 21:08:28 Player: Jay Result: Destroyed by as-31991 with Assembled Blade Performance ------------- Evolutions (0) 0 Regions Visited (2) 400 Robots Destroyed (5) 25 Value Destroyed (37) 37 Prototype IDs (0) 0 Alien Tech Used (0) 0 Bonus (0) 0 TOTAL SCORE: 462 Bonus ------- None Cogmind --------- Core Integrity 0/250 Matter 286/500 Energy 100/100 System Corruption 12% Temperature Cool (0) Movement Core (150) Ox2 Location -10/Mines Parts ------- > --- POWER (1) -------- (None) > --- PROPULSION (2) --- (None) > --- UTILITY (2) ------ Small Storage Unit High-capacity Matter Pod > --- WEAPON (2) ------- (None) > --- INVENTORY (8) ---- Light Ion Engine Seismic Detector Peak State ------------ > --- POWER ------------ Light Ion Engine > --- PROPULSION ------- Aluminum Leg Aluminum Leg > --- UTILITY ---------- Small Storage Unit High-capacity Matter Pod > --- WEAPON ----------- EM Pulse Gun Assault Rifle > --- INVENTORY -------- Light Ion Engine Aluminum Leg [Rating: 7] Favorites ----------- Power Light Ion Engine Engine Light Ion Engine Propulsion Aluminum Leg Leg Aluminum Leg Utility Small Storage Unit Storage Small Storage Unit Weapon EM Pulse Gun Energy Gun EM Pulse Gun Ballistic Gun Assault Rifle Build | -11 -10 -10 ------- Run | Yrd Mat Min Slots Evolved . | . . . Power . | . . . Propulsion . | . . . Utility . | . . . Weapon . | . . . Parts Attached 9 | 2 6 1 Power 2 | 1 1 . Engine 2 | 1 1 . Core . | . . . Reactor . | . . . Propulsion 3 | . 2 1 Treads . | . . . Leg 3 | . 2 1 Wheel . | . . . Hover . | . . . Flight . | . . . Utility 2 | . 2 . Device . | . . . Storage 2 | . 2 . Processor . | . . . Hackware . | . . . Protection . | . . . Artifact . | . . . Weapon 2 | 1 1 . Energy Gun 1 | 1 . . Energy Cannon . | . . . Ballistic Gun 1 | . 1 . Ballistic Cannon . | . . . Launcher . | . . . Special Weapon . | . . . Impact Weapon . | . . . Slashing Weapon . | . . . Piercing Weapon . | . . . Special Melee Weapon . | . . . Unidentified Prototypes . | . . . Parts Lost 5 | . . 5 Power 1 | . . 1 Propulsion 3 | . . 3 Utility . | . . . Weapon 1 | . . 1 Highest Loss Streak 5 | . . 5 To Critical Strikes . | . . . Average Backups 2 | 3 2 2 Power . | . 1 1 Propulsion . | 1 . . Utility . | . . 1 Weapon . | . . . Tool/Special . | . . . Unused Backups 1 | . . 1 Power . | . . . Propulsion . | . . . Utility 1 | . . 1 Weapon . | . . . Tool/Special . | . . . Average Slot Usage (%) 80 | . 80 83 Engine 12 | . 13 9 Leg 24 | . 23 28 Storage 19 | . 17 28 Energy Gun 12 | . 13 7 Ballistic Gun 10 | . 11 9 Peak Build Rating 7 | 2 7 7 Average Rating 5 | 1 5 5 On Entrance 3 | . 2 7 Naked Turns 8 | . 8 . Heaviest Build 16 | 5 16 16 Greatest Support 20 | 3 20 20 Greatest Overweight (x) 1 | 1 1 1 Average Overweight (x) . | . . . Largest Inventory Capacity 8 | 5 8 8 Average Capacity 7 | 5 7 8 Most Carried 5 | 5 5 3 Average Carried 2 | 4 2 2 Final Capacity 8 | 5 8 8 Final Carried 5 | 5 3 2 Class Distribution -------------------- 100% | Mutant Dominant Class ---------------- Mutant | -10/Materials Mutant | -10/Mines Resources | -11 -10 -10 ----------- Run | Yrd Mat Min Matter Collected 308 | 220 88 . Remotely . | . . . Salvage Created 114 | . 114 . Parts 8 | . 8 . Haulers Intercepted . | . . . Recyclers Shooed . | . . . Parts Field Recycled . | . . . Retrieved Matter . | . . . Parts Self-Destructed . | . . . Prevented . | . . . Kills | -11 -10 -10 ------- Run | Yrd Mat Min Combat Hostiles Destroyed 3 | . 3 . Guns 2 | . 2 . AOE 1 | . 1 . Classes Destroyed 3 | . 3 . Worker 1 | . 1 . Recycler 1 | . 1 . Swarmer 3 | . 3 . Best Kill Streak 5 | . 5 . Combat Bots Only 3 | . 3 . Max Kills in Single Turn 3 | . 3 . Gunslinging . | . . . Exploded 1 | . 1 . Melee . | . . . Uniques/NPCs Destroyed . | . . . Combat | -11 -10 -10 -------- Run | Yrd Mat Min Hostile Shots Fired 45 | . 7 38 Missed 12 | . 4 8 Hits 33 | . 3 30 Melee 21 | . . 21 Projectile 12 | . 3 9 Critical Strikes 1 | . . 1 Damage Taken 774 | . 21 753 Core 251 | . 9 242 Absorbed by Shields . | . . . Core Remaining (%) 100 | 100 . . Volleys Fired 9 | . 7 2 Largest 2 | . 2 2 Hottest 60 | . 60 60 Shots Fired 18 | . 14 4 Gun 18 | . 14 4 Cannon . | . . . Launcher . | . . . Special . | . . . Kinetic 9 | . 7 2 Thermal . | . . . Explosive . | . . . Electromagnetic 9 | . 7 2 Robot Hit Streak 3 | . 3 3 Robot Miss Streak 3 | . 3 1 Penetration Max . | . . . Secondary Targets 1 | . 1 . Max Gunslinging Chain 1 | . 1 . Shots Hit Robots 10 | . 7 3 Core Hits 6 | . 5 1 Critical Kills . | . . . Critical Parts Destroyed . | . . . Critical Strikes . | . . . Melee Attacks . | . . . Impact . | . . . Slashing . | . . . Piercing . | . . . Sneak Attacks . | . . . Combat Hostiles . | . . . Follow-up Attacks . | . . . Damage Inflicted 207 | . 173 34 Guns 114 | . 80 34 Cannons . | . . . Explosions 93 | . 93 . Melee . | . . . Ramming . | . . . Kinetic 72 | . 48 24 Thermal 93 | . 93 . Explosive . | . . . Electromagnetic 42 | . 32 10 Impact . | . . . Slashing . | . . . Piercing . | . . . Highest Corruption 12 | . . 12 Average Corruption 3 | . . 3 Corruption Purged . | . . . Corruption Blocked . | . . . Effects 2 | . . 2 Message Errors 1 | . . 1 Parts Rejected 1 | . . 1 Overload Shots . | . . . Overflow Damage . | . . . Projectiles . | . . . Explosions . | . . . Melee . | . . . Knockbacks . | . . . Impact . | . . . Kinetic . | . . . Secondary . | . . . Self-Inflicted Damage . | . . . Shots . | . . . Rammed . | . . . Targets Rammed . | . . . Kicked . | . . . Crushed . | . . . Highest Temperature . | . . . Average Temperature . | . . . Received Heat Transfer . | . . . Siege Activations . | . . . Martial Activations . | . . . Shielding Activations . | . . . Robots Disrupted . | . . . Combat Hostiles . | . . . Robots Corrupted . | . . . Combat Hostiles . | . . . Parts Fried . | . . . Impact Corruptions . | . . . Robots Melted . | . . . Combat Hostiles . | . . . Parts Melted . | . . . Heat Transferred 100 | . 100 . Parts Sabotaged . | . . . Parts Stolen . | . . . Parts Stripped . | . . . Power Chain Reactions 1 | . 1 . Alert | -11 -10 -10 ------- Run | Yrd Mat Min Maximum Alert Level . | . . . Low Security (%) 100 | 100 100 100 Level 1 . | . . . Level 2 . | . . . Level 3 . | . . . Level 4 . | . . . Level 5 . | . . . High Security . | . . . Max Security . | . . . Peak Influence 73 | . 73 16 Initial 16 | . . 16 Average 11 | . 13 6 Influence Increases 85 | . 85 . Destroy 0b10 Robot/C 60 | . 60 . Destroy 0b10 Robot/NC 10 | . 10 . Destroy Leader 10 | . 10 . Successful Hack 2 | . 2 . Destroy Structure 3 | . 3 . Influence Decreases 85 | . 42 43 Entered New Map 27 | . . 27 Time Decay 52 | . 42 10 Lost Part 6 | . . 6 Squads Dispatched 1 | . 1 . Investigation . | . . . Extermination . | . . . Reinforcement 1 | . 1 . Assault . | . . . Garrison . | . . . Intercept . | . . . Searches Triggered . | . . . Construction Impeded . | . . . Haulers Reinforced . | . . . Active Scanning Responses . | . . . Cargo Convoy Interrupts . | . . . Stealth | -11 -10 -10 --------- Run | Yrd Mat Min Distress Signals . | . . . Communications Jammed . | . . . Distress Signals . | . . . Times Spotted 20 | . 7 13 Peak Tracking Total 19 | . 3 19 Tactical Retreats 1 | . . 1 Traps | -11 -10 -10 ------- Run | Yrd Mat Min Traps Triggered 1 | . 1 . Indirectly . | . . . Trap Hack Attempts . | . . . Triggered . | . . . Disarmed . | . . . Reprogrammed . | . . . Reused . | . . . Traps Extracted . | . . . Installed . | . . . Triggered . | . . . Machines | -11 -10 -10 ---------- Run | Yrd Mat Min Machines Disabled . | . . . Max in Single Turn . | . . . Machines Repaired . | . . . Machines Dismantled . | . . . Machines Sabotaged . | . . . Overloaded Fab Kills . | . . . Hacking | -11 -10 -10 --------- Run | Yrd Mat Min Machines Accessed 2 | . 2 . Terminals 2 | . 2 . Fabricators . | . . . Repair Stations . | . . . Recycling Units . | . . . Scanalyzers . | . . . Garrison Access . | . . . Total Hacks 6 | . 6 . Successful 3 | . 3 . Failed 3 | . 3 . Catastrophic . | . . . Database Lockouts . | . . . Manual . | . . . Terminals 6 | . 6 . Fabricators . | . . . Repair Stations . | . . . Recycling Units . | . . . Scanalyzers . | . . . Garrison Access . | . . . Terminal Hacks 3 | . 3 . Record 2 | . 2 . Dispatch Records 1 | . 1 . Fabricator Hacks . | . . . Repair Station Hacks . | . . . Recycling Unit Hacks . | . . . Scanalyzer . | . . . Garrison Access Hacks . | . . . Unauthorized Hacks . | . . . Terminals . | . . . Fabricators . | . . . Repair Stations . | . . . Recycling Units . | . . . Scanalyzers . | . . . Garrison Access . | . . . Data Cores Recovered . | . . . Used . | . . . Hacking Detections 1 | . 1 . Full Trace Events . | . . . Feedback Events . | . . . Feedback Blocked . | . . . Robot Schematics Acquired . | . . . Robots Built . | . . . Authchips . | . . . Time . | . . . Total Robot Build Rating . | . . . Part Schematics Acquired . | . . . Parts Built . | . . . Authchips . | . . . Time . | . . . Total Part Build Rating . | . . . Parts Repaired . | . . . Time . | . . . Parts Recycled . | . . . Recycled Matter . | . . . Retrieved Matter . | . . . Retrieved Components . | . . . Parts Scanalyzed . | . . . Part Schematics Acquired . | . . . Parts Damaged . | . . . Bothacking | -11 -10 -10 ------------ Run | Yrd Mat Min Used RIF Installer . | . . . Robots Hacked . | . . . Non-combat . | . . . Combat . | . . . Robot Hacks Applied . | . . . Relay Couplers Released . | . . . Fabnet Peak Effective % . | . . . Robots Rewired . | . . . Allies Hacked . | . . . Hacks Repelled . | . . . Allies | -11 -10 -10 -------- Run | Yrd Mat Min Total Allies . | . . . Largest Group . | . . . Highest-Rated Group . | . . . Highest-Rated Ally . | . . . Total Orders . | . . . Ally Attacks . | . . . Total Damage . | . . . Kills . | . . . Allies Corrupted . | . . . Allies Melted . | . . . Intel | -11 -10 -10 ------- Run | Yrd Mat Min Active Infowar (turns) . | . . . Robot Analysis Total . | . . . Derelict Logs Recovered . | . . . Drone Launches . | . . . Drone Recoveries . | . . . Exploration | -11 -10 -10 ------------- Run | Yrd Mat Min Turns Passed 368 | 35 281 52 Spaces Moved 237 | 37 169 31 Core 74 | 37 37 . Treads . | . . . Legs 163 | . 132 31 Wheels . | . . . Hover . | . . . Flight . | . . . Fastest Speed 50 | 50 50 120 Average Speed 107 | 75 111 124 Slowest Speed 190 | 100 120 190 Overloaded Moves . | . . . Propulsion Burnouts . | . . . Robots Hopped . | . . . Potential Cave-ins . | . . . Cave-ins Triggered . | . . . Exploration Rate (%) 20 | 3 37 22 Regions Visited 2 Branch Regions 1 Pre-discovered Areas . | . . . Known Exits Taken . | . . . Unknown Exits Taken 2 | 1 1 . Scrap Searched . | . . . Spaces Dug . | . . . Terrain Destroyed 2 | . 2 . Melee . | . . . Projectile . | . . . AOE 2 | . 2 . Terrain Rammed . | . . . Walls Destroyed . | . . . Machines Disabled . | . . . Actions | -11 -10 -10 --------- Run | Yrd Mat Min Total 329 | 43 246 40 Wait 65 | . 60 5 Move 235 | 36 168 31 Hop . | . . . Pick Up 8 | 5 3 . Fast Attach 4 | 2 2 . Attach 6 | . 5 1 Detach . | . . . Swap 2 | . 1 1 Drop . | . . . Fire 9 | . 7 2 Melee . | . . . Ram . | . . . Kick . | . . . Crush . | . . . Escape Stasis . | . . . Rewire . | . . . Trap . | . . . Miscellaneous . | . . . Route ------- -11/Scrapyard -10/Materials (discovered 2 exits: [*Min x2]) -10/Mines History --------- Turn | Location | Event 4 | -11/Scrapyard | Discovered new exit (range 15) 36 | -11/Scrapyard | Entered Materials 137 | -10/Materials | Discovered new exit (range 16) 301 | -10/Materials | Discovered new exit (range 11) 302 | -10/Materials | Build established: Mutant 317 | -10/Materials | Entered Mines 318 | -10/Mines | Assembled infested the area 346 | -10/Mines | Core integrity fell below 50% 369 | -10/Mines | System corruption reached 10% 369 | -10/Mines | Destroyed by as-31991 with Assembled Blade Last Messages --------------- squad. 00333_ Knocked back. 00338_ EM Pulse Gun destroyed. 00340_ Aluminum Leg destroyed. 00340_ System corrupted by crushing effect (+3). 00342_ System corrupted: Assault Rifle rejected. 00342_ as-19282 sneak attacks. 00342_ T-07 Excavator system corrupted by crushing effect. 00342_ T-07 Excavator knocked back. 00343_ T-07 Excavator system terminally corrupted. 00347_ Lgt. Ion Engine destroyed. 00358_ T-07 Excavator is excavating. 00361_ 3GJXEOBT#|XHNBOCG 00365_ T-07 Excavator destroyed. 00366_ Aluminum Leg destroyed. 00366_ System corrupted by crushing effect (+4). 00368_ Aluminum Leg destroyed. 00368_ System corrupted by crushing effect (+5). Map ----- +----------------------------------------------------+ | ??????????????????# """ ??????????? | | ??????????????????# """ #??????????? | | ???????????????????# #??????????? | | ?????????????????????# #??????????? | | ??????????????????????# ##?????????? | | ??????????????????????# ##????????? | | ??????????????????????# ##???????? | | ??????????????????????# #???????? | | ??????????????????????# ### ##?? #??? | | ??????????????????????# ???## ## ##?? | | ???????????????????### ?????# #?? | | ??????????????????## ?????## #?? | | ????????????####### ?????## ##?? | | ????????????# ????## #??? | | ???????????? ???## ##??? | | ??????????? #### ###???? | | ???????????# ##?????? | | ????????????????# % #??????? | | ????????????????## [ #??????? | | ?????????? #### #?????? | | ????????????###### ### ##??## #????? | | ?????????????????# ???### #####?# #????? | | ????????????????## ????# #??# ##????? | | ???????????????## a??# ### #???####?????? | | ???????????????# aa #a### ##???????????? | | ??????????????# a@a #???????????? | | ?????????????# a a a #??????????? | | ?????????????# ##### #??????????? | | ?????????????# %########????# #?????????? | | ???????????????????????????? #????????? | | ???????????????????????????? #????????? | | ???????????????????????????? ##????????? | | ???????????????????????????? #?????????? | | ???????????????????????????? #?????????? | | ???????????????????????????? ##?????????? | | ??????????????????????????? #??????????? | | ??????????????????????????? ??????????? | | ??????????????????????????? ??????????? | | ???????????????????????????# ??????????? | | ????????????????????????????# ??????????? | | ?????????????????????????????# ???????????? | | ???????????????????????????????????????????? | | ???????????????????????????????????????????? | | | | | | | | | | | | | | | +----------------------------------------------------+ Best States ------------- Heat Dissipation 25 Energy Generation 10 Energy Capacity 125 Matter Stores 300 Matter Capacity 500 Sight Range 16 Terrain Scan Density 10 Evasion (%) 55 Item Schematics ----------------- None Robot Schematics ------------------ None Fabricated ------------ Nothing Repaired ---------- Nothing Alien Tech Used ----------------- None Achievements -------------- None Challenges ------------ None Game ------ Seed CompanionHypertargetingStorm Manual? 0 Play Time 00:07:16 Cumulative 49.0 hours Start 2025.05.14 @ 21:01:59 End 2025.05.14 @ 21:08:28 Sessions 1 Manual Loads 0 Difficulty Rogue Special Mode None Game No. 89 Rogue 77 Adventurer 12 Explorer 0 Win Type - Total 0 Types 0/0/0/0/0/0/0/0/0/0 Lore% 10 Gallery% 23 Achievement% 19 Wizard Run 0 Options --------- Layout 0 ASCII 0 Keyboard 0 Movement Mouse Keybinds 0 Fullscreen 2 Font 18/SmallcapsGlow Map View 38x25 Zoom Use 98% Tactical HUD 1 Map Filters NONE Filters NONE Steam 1 RUN: 1c0e28c5-3f7f-45e7-8d3d-455446124c66